[Event "Polish Youth Ekstraliga 2022"]
[Site "Lublin"]
[Date "2022.07.03"]
[Round "9.6"]
[White "Smietanska, Wiktoria"]
[Black "Szczotka, Klara"]
[Result "1/2-1/2"]
[ECO "B10"]
[WhiteElo "1879"]
[BlackElo "1863"]
[Annotator "NA RC"]
[PlyCount "117"]
[EventDate "2022.06.24"]
[EventType "team-tourn"]
[EventCountry "POL"]
[SourceTitle "playchess.com"]
[Source "ChessBase"]
[SourceQuality "1"]
[TimeControl "40/5400+30:1800+30"]

1. e4 {[%emt 0:00:01]} c6 {[%emt 0:00:04]} 2. Nf3 {[%emt 0:00:07]} d5 {[%emt 0:00:25]} 3. exd5 {[%emt 0:00:12]} cxd5 {[%emt 0:00:22]} 4. Ne5 {[%emt 0:00:14]} Nf6 {[%emt 0:01:21]} 5. d4 {[%emt 0:00:12]} g6 {[%emt 0:07:54]} 6. Bb5+ {[%emt 0:01:15]} Nbd7 {[%emt 0:00:50]} 7. O-O {[%emt 0:02:33]} Bg7 {[%emt 0:01:09]} 8. c3 {[%emt 0:00:42]} O-O {[%emt 0:01:01]} 9. Nf3 {[%emt 0:01:42]} Ne4 {[%emt 0:05:17]} 10. Bd3 {[%emt 0:04:41]} Qc7 {[%emt 0:09:05]} 11. Re1 {[%emt 0:02:33]} Ndf6 {[%emt 0:06:27]} 12. Nbd2 {[%emt 0:04:22]} Nxd2 {[%emt 0:00:30]} 13. Bxd2 {[%emt 0:00:32]} Bg4 {[%emt 0:00:51]} 14. h3 {[%emt 0:01:42]} Bf5 {[%emt 0:00:55]} 15. Bxf5 {[%emt 0:06:36]} gxf5 {[%emt 0:00:02]} 16. Ne5 {[%emt 0:00:46]} e6 {[%emt 0:01:33]} 17. Bf4 {[%emt 0:01:17]} Qe7 {[%emt 0:02:07]} 18. Qd2 {[%emt 0:09:36]} Ne4 {[%emt 0:02:14]} 19. Qe3 {[%emt 0:01:28]} f6 {[%emt 0:05:01]} 20. Nd3 {[%emt 0:02:24]} e5 $16 {[%emt 0:02:13] [#]} 21. Bh2 $1 {[%emt 0:01:40]} f4 {[%emt 0:05:57]} 22. Qe2 {[%emt 0:02:00]} Rae8 {[%emt 0:01:58]} 23. f3 {[%emt 0:02:37]} Ng3 {[%emt 0:06:08]} 24. Qf2 {[%emt 0:01:12]} Nh5 {[%emt 0:02:20]} 25. Nxf4 {[%emt 0:00:53]} Nxf4 {[%emt 0:00:04]} 26. Bxf4 {[%emt 0:00:10]} Qf7 {[%emt 0:03:06]} 27. Be3 {[%emt 0:02:41]} b6 {[%emt 0:02:04]} 28. a4 {[%emt 0:02:23]} e4 {[%emt 0:01:43]} 29. Qg3 {[%emt 0:02:17]} f5 {[%emt 0:01:25]} 30. fxe4 {[%emt 0:03:17]} f4 {[%emt 0:01:07]} 31. Bxf4 {[%emt 0:03:11]} Qxf4 {[%emt 0:00:05]} 32. Qxf4 {[%emt 0:00:22]} Rxf4 {[%emt 0:00:03]} 33. exd5 {[%emt 0:00:33]} Rd8 {[%emt 0:04:43]} 34. a5 {[%emt 0:05:47]} b5 {[%emt 0:06:55]} 35. a6 {[%emt 0:04:33]} Rxd5 {[%emt 0:02:55]} 36. Re7 {[%emt 0:01:29]} Rf7 {[%emt 0:04:17]} 37. Re8+ {[%emt 0:00:57]} Bf8 {[%emt 0:00:57]} 38. Ra5 {[%emt 0:01:02]} Rfd7 {[%emt 0:02:56]} 39. Rb8 {[%emt 0:03:20]} Kf7 {[%emt 0:06:10]} 40. Raxb5 {[%emt 0:00:00]} Rxb5 {[%emt 0:00:00]} 41. Rxb5 {[%emt 0:02:58]} Ke6 {[%emt 0:01:38]} 42. Rb8 {[%emt 0:02:46]} Bd6 {[%emt 0:00:58]} 43. Rc8 {[%emt 0:02:41]} Bg3 {[%emt 0:03:53]} 44. Rg8 {[%emt 0:01:19]} Bf4 {[%emt 0:02:12]} 45. Kf2 {[%emt 0:02:36]} Bc1 {[%emt 0:03:52]} 46. Rb8 {[%emt 0:02:08]} h6 {[%emt 0:02:47]} 47. Ke2 {[%emt 0:01:52]} Rd6 {[%emt 0:00:50]} 48. Kd3 {[%emt 0:02:41]} Rxa6 {[%emt 0:01:10]} 49. h4 {[%emt 0:02:30]} Bf4 {[%emt 0:02:50]} 50. Rg8 {[%emt 0:02:08]} Kf7 {[%emt 0:04:52]} 51. Rg4 {[%emt 0:00:54]} Rf6 {[%emt 0:01:12]} 52. g3 {[%emt 0:03:18]} Bc1 {[%emt 0:01:45]} 53. Kc2 {[%emt 0:00:44]} Be3 {[%emt 0:00:19]} 54. Kd3 {[%emt 0:00:22]} Bc1 {[%emt 0:01:17]} 55. Kc2 {[%emt 0:01:36]} Be3 {[%emt 0:00:53]} 56. Kd3 {[%emt 0:00:29]} Bc1 {[%emt 0:00:04]} 57. Kc2 {[%emt 0:00:32]} Be3 {[%emt 0:00:10]} 58. Kd3 {[%emt 0:00:33]} Bc1 {[%emt 0:00:03]} 59. Ke4 1/2-1/2

[Event "Polish Youth Ekstraliga 2022"]
[Site "Lublin"]
[Date "2022.07.03"]
[Round "9.7"]
[White "Czernek, Tymon"]
[Black "Dzida, Kamil"]
[Result "0-1"]
[ECO "B90"]
[WhiteElo "2199"]
[BlackElo "2294"]
[Annotator "TA"]
[PlyCount "106"]
[EventDate "2022.06.24"]
[EventType "team-tourn"]
[EventCountry "POL"]
[SourceTitle "playchess.com"]
[Source "ChessBase"]
[SourceQuality "1"]
[TimeControl "40/5400+30:1800+30"]

{[%evp 13,106,0,155,160,162,166,187,168,175,166,376,173,230,7,7,7,16,19,8,26,19,21,45,-16,0,-14,1,26,10,9,37,-52,-45,-46,0,0,0,0,0,-113,-17,-17,-34,-29,-28,-108,-112,-91,-103,-122,0,0,0,-190,-190,-358,-358,-358,-358,-358,-358,-424,-329,-662,-627,-654,-605,-731,-677,-748,-747,-658,-633,-737,-712,-725,-681,-1241,-1256,-1123,-1030,-927,-689,-1330,-1321,-1302,-1279,-1259,-1218,-1103,-974,-29986,-29987,-29987,-29988]} 1. e4 {[%emt 0:02:06]} c5 {[%emt 0:00:08]} 2. Nf3 {[%emt 0:00:04][%cal Bg1f3,Bf3d4,Bd4e6][%mdl 32]} d6 {[%emt 0:00:05]} 3. d4 cxd4 {[%emt 0:00:07]} 4. Nxd4 {[%emt 0:00:07]} Nf6 {[%emt 0:00:05]} 5. Nc3 {[%emt 0:00:03]} a6 {[%emt 0:00:04]} 6. Bc4 {[%emt 0:00:04]} e6 {[%emt 0:00:05]} 7. O-O {[%emt 0:00:07]} Nbd7 $2 {[%emt 0:00:06] [#]} (7... b5 $11 8. Bb3 Nbd7) 8. Bxe6 $1 $16 {[%emt 0:00:05][%mdl 512] B86: Sicilian Scheveningen/Najdorf: 6 Bc4, without early ...b5.} fxe6 {[%emt 0:00:08]} (8... Be7 9. Bb3) 9. Nxe6 {[%emt 0:00:03]} Qa5 {[%emt 0:08:08]} 10. Nd5 {[%emt 0:00:07] White is clearly better.} Nxd5 {[%emt 0:04:27]} 11. exd5 {[%emt 0:00:02] [#]} b5 $146 {[%emt 0:05:06]} (11... Nf6 $2 12. Bd2 Qa4 13. Nc7+ Kf7 14. Nxa8 $18) (11... Kf7) ({Predecessor:} 11... Nf6 12. b4 Qxb4 13. Nc7+ Kf7 14. Nxa8 Bg4 15. Qd3 Be7 16. Nc7 Qc5 17. Ne6 Qxd5 {1-0 (50) Karacsonyi,G (2333)-Dordzhieva,D (2325) Chess.com INT 2022}) 12. Bd2 {[%emt 0:11:23]} (12. Re1 $142 {Threatens to win with Bd2.} Kf7 13. Qf3+ Nf6 14. Bg5) 12... Qb6 {[%emt 0:00:25]} (12... b4 {is a better defense.}) 13. Qe1 $2 {[%emt 0:01:22]} ({White should play} 13. Bc3 $18) 13... Ne5 $11 {[%emt 0:03:14]} 14. Ba5 {[%emt 0:01:43]} Qa7 {[%emt 0:00:46]} 15. Nc7+ {[%emt 0:09:27]} Kf7 {[%emt 0:00:16]} 16. Nxa8 {[%emt 0:00:54]} Qxa8 {[%emt 0:00:08]} 17. Qe4 {[%emt 0:01:30]} Be7 {[%emt 0:09:33]} 18. Rfe1 {[%emt 0:19:49]} (18. Bc3 $14) 18... Bf6 {[%emt 0:02:58][%mdl 1024] Black has compensation.} 19. h3 {[%emt 0:02:55]} g6 $132 {[%emt 0:03:19][%mdl 2048] Black is fighting back} 20. Bc3 {[%emt 0:01:04] f4 is the strong threat.} Bf5 {[%emt 0:08:06]} 21. Qb4 {[%emt 0:03:27]} Qb8 {[%emt 0:06:37]} (21... Qxd5 $2 22. Rad1 a5 23. Qxd6 (23. Rxd5 axb4 24. Bxb4 Rd8 $14) 23... Qxd6 24. Rxd6 $18) 22. f4 {[%emt 0:18:37]} (22. a4 $1 $14 Rd8 23. Re2) 22... Qb6+ $1 $15 {[%emt 0:03:56]} 23. Kh1 {[%emt 0:00:09]} Nd7 {[%emt 0:00:04]} (23... a5 $1 $15 {deserves consideration.} 24. Qd4 (24. Qxa5 Qxa5 25. Bxa5 Nc4 $15) 24... Qxd4 25. Bxd4 Nd7 26. Bxf6 Nxf6) 24. Re6 {[%emt 0:06:15]} Rc8 {[%emt 0:13:56]} (24... Bxe6 $2 25. dxe6+ Kxe6 26. Re1+ Kf7 27. Qb3+ (27. Qe4 Qd8 $14) 27... Kg7 28. Re7+ Kh6 29. Rxd7 $18) 25. Rae1 {[%emt 0:07:46]} a5 {[%emt 0:03:22]} 26. Qa3 {[%emt 0:02:21] [#]} (26. Qxd6 $11 {remains equal.} Qxd6 27. Rxd6 Bxc3 28. bxc3 Rxc3 29. Rc6) 26... b4 {[%emt 0:07:30] Really sharp!} ({Black should try} 26... Bh4 $1 $17 27. Bxa5 (27. Rxd6 $2 b4 $19) 27... b4 28. Qxb4 (28. Bxb6 $2 {perishes.} bxa3 29. Bd4 Bxe1 $19) (28. Qa4 $2 Nc5 $19) 28... Qxb4 29. Bxb4 Bxe1 30. Rxe1 Rxc2 31. Bxd6 Nf6 32. Re7+ Kg8) 27. Qa4 $11 {[%emt 0:00:04]} Qc7 {[%emt 0:00:04]} 28. Bxf6 {[%emt 0:04:13]} Nxf6 {[%emt 0:00:05]} 29. R6e2 {[%emt 0:00:24]} (29. Re7+ $1 $11 {keeps the balance.} Qxe7 30. Rxe7+ Kxe7 31. Qxa5) 29... Nxd5 $17 {[%emt 0:02:48]} 30. Qb3 {[%emt 0:01:15]} Qc4 {[%emt 0:00:07]} 31. Qf3 {[%emt 0:00:05]} Nf6 {[%emt 0:02:07] Black is more active.} (31... Qd4 $17 32. g4 Bd7) 32. Qb7+ $1 $11 {[%emt 0:02:09]} ({Much worse is} 32. Qe3 Rc7 33. Qb6 Qc5 34. Qxc5 Rxc5 $17) 32... Kg8 {[%emt 0:00:11]} 33. Qe7 $2 {[%emt 0:00:11] [#] Black converts the advantage convincingly.} (33. Re7 $1 $11 {and White stays safe.}) 33... Re8 $1 $19 {[%emt 0:03:56]} 34. Qxf6 {[%emt 0:02:22]} (34. Qxe8+ Nxe8 35. Rxe8+ Kg7 36. g4 Bxg4 37. hxg4 Qxf4 38. R8e4 Qf3+ 39. Kg1) 34... Rxe2 {[%emt 0:00:06]} 35. Rxe2 {[%emt 0:00:06]} Qxe2 {[%emt 0:00:05]} 36. Qxd6 {[%emt 0:00:18]} Qxc2 {[%emt 0:02:50]} 37. Qd5+ {[%emt 0:00:33]} Kg7 {[%emt 0:00:06]} 38. Qxa5 $2 {[%emt 0:01:23]} (38. Qd4+ Kh6 39. Qe5) 38... Qc1+ {[%emt 0:00:12]} 39. Kh2 {[%emt 0:00:09]} Qxf4+ {[%emt 0:00:03]} 40. Kg1 {[%emt 0:00:00]} Qc1+ {[%emt 0:00:00]} 41. Kh2 {[%emt 0:00:10]} Qxb2 {[%emt 0:02:32]} 42. Qc7+ {[%emt 0:00:07]} Kf6 {[%emt 0:00:45]} 43. Qd6+ {[%emt 0:00:24]} Kf7 {[%emt 0:00:43]} 44. Qc7+ {[%emt 0:00:22]} Ke6 {[%emt 0:00:04]} 45. Qxh7 {[%emt 0:00:08]} Qe5+ {[%emt 0:00:48]} 46. Kh1 {[%emt 0:00:18]} Qd4 {[%emt 0:00:28] White must now prevent ...Kd5.} 47. Qg8+ {[%emt 0:00:32]} Ke5 {[%emt 0:00:08] Strongly threatening ...Qd2.} 48. Kh2 {[%emt 0:00:15]} Ke4 {[%emt 0:00:14]} 49. Qb3 {[%emt 0:00:55]} Qe5+ {[%emt 0:00:36]} 50. Kh1 {[%emt 0:00:21]} Qc3 {[%emt 0:00:07]} 51. Qg8 {[%emt 0:00:20]} Ke3 {[%emt 0:00:28] ( -> ...Qe1+)} 52. Qf7 {[%emt 0:00:48]} Kf2 {[%emt 0:00:41]} 53. Qa7+ {[%emt 0:00:32]} Qe3 {[%emt 0:00:05] Weighted Error Value: White=0.64/Black=0.28 (precise)} 0-1

[Event "Polish Youth Ekstraliga 2022"]
[Site "Lublin"]
[Date "2022.07.03"]
[Round "9.8"]
[White "Koziorowicz, Michal"]
[Black "Chyzy, Jakub"]
[Result "1-0"]
[ECO "C47"]
[WhiteElo "2231"]
[BlackElo "2191"]
[Annotator "TA"]
[PlyCount "55"]
[EventDate "2022.06.24"]
[EventType "team-tourn"]
[EventCountry "POL"]
[SourceTitle "playchess.com"]
[Source "ChessBase"]
[SourceQuality "1"]
[TimeControl "40/5400+30:1800+30"]

{[%evp 11,55,-11,-6,-30,-28,-28,-22,-25,-21,-51,-64,-56,0,0,19,8,107,109,108,29,140,140,477,467,885,402,865,828,1079,1071,3500,2331,29976,29977,29980,29980,29990,29991,29992,29992,29992,29993,29993,29994,29994,29995]} 1. e4 {[%emt 0:00:01]} e5 {[%emt 0:01:50]} 2. Nf3 {[%emt 0:00:25]} Nc6 {[%emt 0:00:11]} 3. Nc3 {[%emt 0:00:06]} Nf6 {[%emt 0:00:15]} 4. d4 {[%emt 0:00:21]} Bb4 {[%emt 0:02:12]} 5. d5 {[%emt 0:13:06]} Ne7 {[%emt 0:00:17]} 6. Nxe5 {[%emt 0:03:42]} d6 {[%emt 0:03:00]} 7. Nf3 {[%emt 0:09:29] C47: Scotch Four Knights and Four Knights with 4 g3.} Nxe4 8. Qd4 {[%emt 0:00:22][%csl LRb4,LRe4,LRg7]} Nxc3 {[%emt 0:00:29]} 9. bxc3 {[%emt 0:06:28] The position is equal.} Ba5 {[%emt 0:00:08] [#]} 10. Bd2 $146 {[%emt 0:09:24]} ({Predecessor:} 10. Qa4+ c6 11. dxc6 O-O 12. Bd2 Nd5 13. O-O-O Nxc3 14. Bxc3 Bxc3 15. Qb3 Qa5 16. Rd5 {0-1 (30) Oltean,G (2077)-Sycz,D (2122) Amsterdam 2015}) 10... O-O $1 {[%emt 0:00:36]} 11. Bd3 {[%emt 0:08:26]} Nf5 {[%emt 0:09:29]} (11... c6 $15) 12. Qf4 $36 {[%emt 0:00:25][%mdl 2048] White fights for an advantage. Active counter play!} Re8+ {[%emt 0:11:45]} 13. Kf1 {[%emt 0:01:39]} g6 {[%emt 0:10:30]} (13... Nh6 $11) 14. g4 $16 {[%emt 0:17:44]} Ng7 {[%emt 0:10:03]} 15. Ng5 (15. Rg1 $16) 15... f5 {[%emt 0:02:30] [#]} (15... Re7 $1 $11 {remains equal.}) 16. h4 $1 {[%emt 0:07:06][%cal Og5h7] Black must now prevent Nxh7!} Rf8 $2 {[%emt 0:17:06][%mdl 8192] This move loses the game for Black.} (16... h5 $16) 17. Nxh7 $1 $18 {[%emt 0:02:01] Threatens to win with Qh6.} Kxh7 {[%emt 0:00:43]} (17... fxg4 $142 18. Qh6 g3) 18. Qh6+ {[%emt 0:00:05]} Kg8 {[%emt 0:00:05] aiming for ...Qf6.} 19. h5 {[%emt 0:00:30]} ({Worse is} 19. Qxg6 Rf6 20. Qg5 Qf8 $17) 19... gxh5 {[%emt 0:00:37]} 20. g5 {[%emt 0:02:49][%cal Bg4g5,Bg5g6][%mdl 32] g6 would kill now.} Qd7 {[%emt 0:03:04]} 21. Re1 {[%emt 0:01:41] White threatens g6 and mate.} Re8 {[%emt 0:10:26]} 22. Rxe8+ {[%emt 0:01:03] White mates.} (22. g6 Rxe1+ 23. Kg2 {[#]} Ne6 $1 24. dxe6 Rxe6 25. Qxh5 Qg7 $11) 22... Qxe8 {[%emt 0:00:28]} 23. g6 {[%emt 0:00:17]} Be6 {[%emt 0:00:10]} 24. Rxh5 {[%emt 0:05:45][%csl Gh5][%cal Rh6h8]} Kf8 {[%emt 0:01:48]} 25. Rxf5+ {[%emt 0:02:23]} Bxf5 {[%emt 0:00:13]} 26. Qh8+ {[%emt 0:00:30][%mdl 64] Deflection} Ke7 {[%emt 0:00:04]} 27. Qxg7+ {[%emt 0:00:05]} Kd8 {[%emt 0:00:04]} 28. Bxf5 {[%emt 0:00:12] Weighted Error Value: White=0.09 (flawless) /Black=0.73} 1-0

[Event "Polish Youth Ekstraliga 2022"]
[Site "Lublin"]
[Date "2022.07.03"]
[Round "9.9"]
[White "Sowinski, Pawel"]
[Black "Raczek, Krzysztof"]
[Result "1-0"]
[ECO "E62"]
[WhiteElo "2060"]
[BlackElo "2114"]
[Annotator "RC"]
[PlyCount "117"]
[EventDate "2022.06.24"]
[EventType "team-tourn"]
[EventCountry "POL"]
[SourceTitle "playchess.com"]
[Source "ChessBase"]
[SourceQuality "1"]
[TimeControl "40/5400+30:1800+30"]

1. d4 {[%emt 0:02:45]} Nf6 {[%emt 0:00:01]} 2. c4 {[%emt 0:00:08]} g6 {[%emt 0:00:06]} 3. Nc3 {[%emt 0:00:30]} Bg7 {[%emt 0:00:06]} 4. g3 {[%emt 0:00:06]} O-O {[%emt 0:00:04]} 5. Bg2 {[%emt 0:00:02]} d6 {[%emt 0:00:06]} 6. Nf3 {[%emt 0:00:03]} Nc6 {[%emt 0:00:12]} 7. h3 {[%emt 0:00:41]} Bd7 {[%emt 0:07:32]} 8. O-O {[%emt 0:00:07]} Na5 {[%emt 0:02:56]} 9. Qd3 {[%emt 0:10:42]} c5 {[%emt 0:01:23]} 10. b3 {[%emt 0:00:49]} Nc6 {[%emt 0:10:03]} 11. Bb2 {[%emt 0:06:15]} Qc8 {[%emt 0:03:12]} 12. dxc5 {[%emt 0:16:49]} dxc5 {[%emt 0:03:35]} 13. Qe3 {[%emt 0:10:58]} Nb4 {[%emt 0:31:23]} 14. Rac1 {[%emt 0:03:51]} Bxh3 {[%emt 0:05:33]} 15. a3 {[%emt 0:10:50]} Bxg2 {[%emt 0:07:15]} 16. Kxg2 {[%emt 0:00:03]} Na6 {[%emt 0:00:10]} 17. Qxe7 {[%emt 0:07:56]} Qc6 {[%emt 0:02:23]} 18. Rfd1 {[%emt 0:03:57]} Qb6 {[%emt 0:06:37]} 19. Nb5 {[%emt 0:11:39]} Rae8 {[%emt 0:05:51]} 20. Qd6 {[%emt 0:01:21]} Rxe2 {[%emt 0:01:01]} 21. Bxf6 {[%emt 0:01:01]} Bxf6 {[%emt 0:00:15]} 22. Qf4 {[%emt 0:02:19]} Rd8 {[%emt 0:06:24]} 23. g4 {[%emt 0:02:59]} Re6 {[%emt 0:03:18]} 24. Rh1 {[%emt 0:03:11]} Qc6 {[%emt 0:00:56]} 25. Nxa7 {[%emt 0:00:58]} Qe4 {[%emt 0:00:30]} 26. Qg3 {[%emt 0:00:01]} h5 {[%emt 0:01:00]} 27. gxh5 {[%emt 0:00:46]} Be5 {[%emt 0:00:17]} 28. Qh4 {[%emt 0:01:17]} Bf6 {[%emt 0:01:17]} 29. Qxe4 {[%emt 0:01:19]} Rxe4 {[%emt 0:00:02]} 30. Rcd1 {[%emt 0:00:00]} Rxd1 {[%emt 0:01:24]} 31. Rxd1 {[%emt 0:00:01]} gxh5 {[%emt 0:00:01]} 32. Nb5 {[%emt 0:01:01]} Nb8 {[%emt 0:00:51]} 33. Rd5 {[%emt 0:01:14]} Rg4+ {[%emt 0:00:23]} 34. Kh3 {[%emt 0:00:01]} Rf4 {[%emt 0:00:09]} 35. Kg3 {[%emt 0:01:13]} Rg4+ {[%emt 0:00:01]} 36. Kh3 {[%emt 0:00:00]} Rf4 {[%emt 0:00:01]} 37. Kg2 {[%emt 0:00:01]} Rg4+ {[%emt 0:00:22]} 38. Kf1 {[%emt 0:00:17]} h4 {[%emt 0:01:02]} 39. Rxc5 {[%emt 0:01:01]} Nc6 {[%emt 0:00:16]} 40. Rf5 {[%emt 0:00:00]} Kg7 {[%emt 0:00:00]} 41. Nh2 {[%emt 0:03:14]} Re4 {[%emt 0:05:20]} 42. Nd6 {[%emt 0:07:02]} Re6 {[%emt 0:01:38]} 43. Nxb7 {[%emt 0:04:55]} Nd4 {[%emt 0:00:31]} 44. Rd5 {[%emt 0:01:56]} Nxb3 {[%emt 0:01:19]} 45. Ng4 {[%emt 0:00:42]} Be7 {[%emt 0:01:44]} 46. c5 {[%emt 0:01:10]} Ra6 {[%emt 0:13:07]} 47. Nd6 {[%emt 0:03:38]} Rxa3 {[%emt 0:01:40]} 48. Nf5+ {[%emt 0:00:08]} Kf8 {[%emt 0:00:05]} 49. c6 {[%emt 0:00:36]} Ke8 {[%emt 0:05:35]} 50. Re5 {[%emt 0:01:54]} Ra7 {[%emt 0:00:33]} 51. Nxe7 {[%emt 0:00:06]} Nd2+ {[%emt 0:00:38]} 52. Kg2 {[%emt 0:02:03]} Nc4 {[%emt 0:00:22]} 53. Nd5+ {[%emt 0:01:21]} Nxe5 {[%emt 0:00:23]} 54. Nxe5 {[%emt 0:00:01]} Kd8 {[%emt 0:00:52]} 55. c7+ {[%emt 0:00:05]} Kc8 {[%emt 0:00:04]} 56. Nc6 {[%emt 0:00:24]} h3+ {[%emt 0:00:38]} 57. Kxh3 {[%emt 0:00:28]} Ra3+ {[%emt 0:00:01]} 58. Kg2 {[%emt 0:00:01]} Rd3 {[%emt 0:00:19]} 59. Nce7+ {[%emt 0:00:05]} 1-0

[Event "Polish Youth Ekstraliga 2022"]
[Site "Lublin"]
[Date "2022.07.03"]
[Round "9.10"]
[White "Grzebieniowski, Michal"]
[Black "Golis, Wiktor"]
[Result "0-1"]
[ECO "E10"]
[WhiteElo "1635"]
[BlackElo "1653"]
[Annotator "NA RC"]
[PlyCount "64"]
[EventDate "2022.06.24"]
[EventType "team-tourn"]
[EventCountry "POL"]
[SourceTitle "playchess.com"]
[Source "ChessBase"]
[SourceQuality "1"]
[TimeControl "40/5400+30:1800+30"]

1. d4 {[%emt 0:00:02]} Nf6 {[%emt 0:01:38]} 2. c4 {[%emt 0:00:07]} e6 {[%emt 0:00:05]} 3. Nf3 {[%emt 0:00:08]} c5 {[%emt 0:00:07]} 4. d5 {[%emt 0:00:29]} b5 {[%emt 0:00:12]} 5. dxe6 {[%emt 0:00:35]} fxe6 {[%emt 0:00:03]} 6. cxb5 {[%emt 0:00:59]} d5 {[%emt 0:00:08]} 7. e3 {[%emt 0:00:34]} Bd6 {[%emt 0:00:24]} 8. Be2 {[%emt 0:00:25]} Nbd7 {[%emt 0:00:16]} 9. O-O {[%emt 0:02:07]} O-O {[%emt 0:01:08]} 10. b3 {[%emt 0:01:34]} Bb7 {[%emt 0:00:59]} 11. Bb2 {[%emt 0:01:54]} Qe7 {[%emt 0:00:23]} 12. Qc2 {[%emt 0:06:53]} e5 {[%emt 0:02:23]} 13. Nbd2 {[%emt 0:10:53]} e4 {[%emt 0:02:57]} 14. Ne1 {[%emt 0:00:15]} Ne5 {[%emt 0:01:42]} 15. Rc1 {[%emt 0:03:19]} Nfg4 {[%emt 0:07:27]} 16. g3 {[%emt 0:04:04]} Qg5 {[%emt 0:04:59]} 17. Ng2 {[%emt 0:02:14]} Nf3+ {[%emt 0:12:09]} 18. Bxf3 {[%emt 0:01:25]} exf3 {[%emt 0:00:17]} 19. Ne1 {[%emt 0:04:10]} d4 {[%emt 0:15:52]} 20. e4 {[%emt 0:00:47]} Rae8 {[%emt 0:05:51]} 21. Nexf3 {[%emt 0:03:58]} Qh5 {[%emt 0:01:41]} 22. Rfe1 {[%emt 0:04:08]} Nxh2 {[%emt 0:07:13]} 23. Nh4 {[%emt 0:07:51]} Ng4 {[%emt 0:02:20]} 24. Re2 {[%emt 0:07:39]} Ne5 {[%emt 0:18:57]} 25. Qd1 {[%emt 0:01:25]} Bc8 {[%emt 0:00:52]} 26. Re1 {[%emt 0:05:59]} Bg4 {[%emt 0:02:02]} 27. Qc2 {[%emt 0:00:13]} g5 {[%emt 0:00:54]} 28. Ng2 {[%emt 0:00:49]} Nf3+ {[%emt 0:00:59]} 29. Nxf3 {[%emt 0:00:16]} Bxf3 {[%emt 0:00:08]} 30. Qc4+ {[%emt 0:01:57]} Rf7 {[%emt 0:00:23]} 31. Qf1 {[%emt 0:05:14]} Re6 {[%emt 0:01:04]} 32. e5 {[%emt 0:08:45]} Rh6 {[%emt 0:00:22]} 0-1

[Event "Polish Youth Ekstraliga 2022"]
[Site "Lublin"]
[Date "2022.07.03"]
[Round "9.11"]
[White "Wikar, Martyna"]
[Black "Siekanska, Maria"]
[Result "1-0"]
[ECO "A04"]
[WhiteElo "2197"]
[BlackElo "1964"]
[Annotator "RC"]
[PlyCount "83"]
[EventDate "2022.06.24"]
[EventType "team-tourn"]
[EventCountry "POL"]
[SourceTitle "playchess.com"]
[Source "ChessBase"]
[SourceQuality "1"]
[TimeControl "40/5400+30:1800+30"]

1. Nf3 {[%emt 0:01:37]} c5 {[%emt 0:00:08]} 2. g3 {[%emt 0:00:10]} g6 {[%emt 0:00:26]} 3. Bg2 {[%emt 0:00:57]} Bg7 {[%emt 0:00:20]} 4. O-O {[%emt 0:00:57]} d5 {[%emt 0:01:11]} 5. c4 {[%emt 0:05:03]} e6 {[%emt 0:02:13]} 6. cxd5 {[%emt 0:01:31]} Qxd5 {[%emt 0:08:11]} 7. d3 {[%emt 0:02:15]} Nc6 {[%emt 0:02:32]} 8. Nc3 {[%emt 0:05:38]} Qd7 {[%emt 0:03:03]} 9. Be3 {[%emt 0:01:01]} Bd4 {[%emt 0:08:29]} 10. Qd2 {[%emt 0:04:55]} f5 {[%emt 0:15:26]} 11. Nb5 {[%emt 0:06:39]} a6 {[%emt 0:09:59]} 12. Nbxd4 {[%emt 0:00:30]} cxd4 {[%emt 0:00:17]} 13. Bf4 {[%emt 0:00:10]} Nge7 {[%emt 0:03:59]} 14. Ne5 {[%emt 0:04:37]} Nxe5 {[%emt 0:01:01]} 15. Bxe5 {[%emt 0:00:02]} O-O {[%emt 0:00:34]} 16. Rac1 {[%emt 0:00:23]} Nc6 {[%emt 0:01:28]} 17. Bxc6 {[%emt 0:00:17]} bxc6 {[%emt 0:00:22]} 18. Qf4 {[%emt 0:01:38]} Qd5 {[%emt 0:08:36]} 19. Bxd4 {[%emt 0:02:01]} Re8 {[%emt 0:04:11]} 20. Qe5 {[%emt 0:11:49]} Qxe5 {[%emt 0:00:15]} 21. Bxe5 {[%emt 0:00:02]} Bb7 {[%emt 0:03:55]} 22. Rc3 {[%emt 0:00:40]} Re7 {[%emt 0:01:16]} 23. f4 {[%emt 0:02:17]} Rf7 {[%emt 0:02:04]} 24. Kf2 {[%emt 0:01:09]} Rd8 {[%emt 0:01:42]} 25. Ke3 {[%emt 0:01:04]} Rd5 {[%emt 0:03:02]} 26. a4 {[%emt 0:01:02]} g5 {[%emt 0:01:52]} 27. Rfc1 {[%emt 0:00:54]} g4 {[%emt 0:01:19]} 28. Rb3 {[%emt 0:03:03]} Re7 {[%emt 0:02:44]} 29. h3 {[%emt 0:03:14]} gxh3 {[%emt 0:01:49]} 30. Rh1 {[%emt 0:00:08]} Rdd7 {[%emt 0:02:51]} 31. Rxh3 {[%emt 0:00:20]} Kf8 {[%emt 0:00:35]} 32. Rh6 {[%emt 0:05:38]} Kg8 {[%emt 0:06:19]} 33. Rb6 {[%emt 0:01:44]} Kf8 {[%emt 0:01:06]} 34. Bf6 {[%emt 0:01:25]} Re8 {[%emt 0:00:19]} 35. Bd4 {[%emt 0:02:31]} Rf7 {[%emt 0:01:19]} 36. Rh5 {[%emt 0:00:52]} Rd8 {[%emt 0:01:39]} 37. g4 {[%emt 0:02:05]} Rd5 {[%emt 0:00:47]} 38. g5 {[%emt 0:00:59]} Rfd7 {[%emt 0:00:33]} 39. Be5 {[%emt 0:02:07]} a5 {[%emt 0:00:52]} 40. g6 {[%emt 0:00:00]} hxg6 {[%emt 0:00:00]} 41. Rh8+ {[%emt 0:00:29]} Kf7 {[%emt 0:00:14]} 42. Rxb7 {[%emt 0:00:22]} 1-0

[Event "Polish Youth Ekstraliga 2022"]
[Site "Lublin"]
[Date "2022.07.03"]
[Round "9.12"]
[White "Ziobrowska, Maja"]
[Black "Natoli, Alessia"]
[Result "0-1"]
[ECO "B10"]
[WhiteElo "1609"]
[BlackElo "1680"]
[Annotator "NA RC"]
[PlyCount "120"]
[EventDate "2022.06.24"]
[EventType "team-tourn"]
[EventCountry "POL"]
[SourceTitle "playchess.com"]
[Source "ChessBase"]
[SourceQuality "1"]
[TimeControl "40/5400+30:1800+30"]

1. e4 c6 2. Nf3 d5 3. Nc3 dxe4 4. Nxe4 Nd7 5. Bc4 e6 6. O-O Ngf6 7. Nxf6+ Nxf6 8. d4 Be7 9. Ne5 O-O 10. c3 Qc7 11. Bf4 Bd6 12. Re1 Nd5 13. Bg3 b6 14. Bd3 c5 15. Be4 c4 16. Qa4 b5 17. Qxb5 Rb8 18. Qxc4 Bxe5 19. Bxd5 exd5 20. Qxc7 Bxc7 21. Bxc7 Rxb2 22. Bd6 Rd8 23. Re7 a6 24. Ba3 Rb6 25. Kf1 Re6 26. Rc7 Bd7 27. g3 Bb5+ 28. Kg2 Rde8 29. Bb4 h6 30. a4 Bc4 31. Rd1 Re2 32. Ra1 R8e3 33. Kg1 Rd3 34. Re7 Rc2 35. Re3 Rdd2 36. Rf3 Be2 37. Rf4 g5 38. Rf6 Kg7 39. Be7 g4 40. Rf4 Rxc3 41. Bb4 Rcd3 42. Bxd2 Rxd2 43. Re1 Bf3 44. Ra1 Kg6 45. Kf1 f5 46. h4 Be4 47. Ke1 Rxd4 48. Rd1 Rxd1+ 49. Kxd1 h5 50. Kd2 Kf6 51. Ke3 Ke5 52. Kd2 Kd4 53. f3 gxf3 54. g4 Ke5 55. gxh5 Kxf4 56. h6 f2 57. h7 f1=Q 58. h8=Q Qd3+ 59. Ke1 Ke3 60. Qb2 Qb1+ 0-1